[Event "Slovakia Open 2022"]
[Site "Bratislava"]
[Date "2022.10.01"]
[Round "5.12"]
[White "Nestorenko, Dmitry"]
[Black "Mikulas, Dusan"]
[Result "1-0"]
[ECO "B06"]
[WhiteElo "2168"]
[BlackElo "2047"]
[Annotator "TA"]
[PlyCount "59"]
[EventDate "2022.09.30"]
[EventCountry "SVK"]
[SourceTitle "playchess.com"]
[Source "ChessBase"]
[SourceQuality "1"]
[TimeControl "2700+10"]

{[%evp 10,59,53,19,27,0,0,0,0,0,0,0,0,0,0,-18,-7,-17,-4,-14,-18,-43,-36,-141,-133,-207,-103,-220,-206,-514,-513,-512,-266,-264,-270,-268,-8,-8,-8,-8,0,0,16,12,711,666,29993,29994,29994,29995,29996,29997]} 1. e4 {[%emt 0:00:03]} c5 {[%emt 0:00:32]} 2. c3 {[%emt 0:00:01]} d5 {[%emt 0:00:10]} 3. exd5 {[%emt 0:00:02]} Qxd5 {[%emt 0:00:01]} 4. d4 {[%emt 0:00:01]} g6 {[%emt 0:00:04]} 5. Nf3 {[%emt 0:00:07]} Bg7 {[%emt 0:00:19]} 6. Be2 {[%emt 0:00:15]} (6. Na3 $5 {[%cal Rf1c4]}) 6... Nh6 {[%emt 0:01:04] B06: Modern Defence.} 7. dxc5 {[%emt 0:00:17]} Qxc5 {[%emt 0:00:16]} 8. Be3 {[%emt 0:00:03]} Qc7 {[%emt 0:00:19] The position is equal.} 9. Na3 {[%emt 0:00:17] Black must now prevent Nb5.} a6 {[%emt 0:00:51] Inhibits Nb5.} 10. Nc4 {[%emt 0:00:10]} Nd7 {[%emt 0:00:32] Inhibits Nb6.} 11. Qd2 {[%emt 0:01:45]} Nf5 {[%emt 0:01:08]} 12. Bf4 {[%emt 0:00:08]} e5 {[%emt 0:01:38]} 13. g4 {[%emt 0:00:02]} exf4 {[%emt 0:03:09]} 14. gxf5 {[%emt 0:00:02]} O-O {[%emt 0:01:17] [#]} 15. fxg6 $146 {[%emt 0:00:02]} (15. Qd6 {feels hotter.} Qc5 16. Qxc5 Nxc5 17. Nd6) ({Predecessor:} 15. Qd6 Qc5 16. Qxc5 Nxc5 17. Nd6 Bd7 18. Nd4 Be5 19. Nc4 Bxd4 20. cxd4 Ne4 21. f3 {0-1 (33) Ljubarov,M (2115)-Matnadze,A (2428) Barbera del Valles 2011}) 15... hxg6 {[%emt 0:00:23]} 16. O-O-O {[%emt 0:02:12]} (16. Qd6 $1 $15 Qc5 17. O-O) 16... b5 $17 {[%emt 0:01:29][%cal Bb7b5,Bb5b4,Bb4c3][%mdl 32]} 17. Nd6 {[%emt 0:00:02] [#]} (17. Qd6 $17 Qa7 18. Ncd2) 17... Nc5 {[%emt 0:02:09]} (17... b4 $1 $19 {[%cal Rb4c3] and Black stays clearly on top.} 18. Nxc8 (18. Qxf4 $2 bxc3 19. Qc4 cxb2+ 20. Kb1 Ra7 $19) 18... Nc5) 18. Qxf4 {[%emt 0:05:56]} (18. Ng5 $17 Be6 19. Nxe6 Nxe6 20. Bg4) 18... Na4 {[%emt 0:01:13]} 19. Qd2 {[%emt 0:03:36]} (19. Qe3 Be6 20. a3) 19... b4 $19 {[%emt 0:02:19][%cal Rb4c3]} 20. Qc2 {[%emt 0:02:51]} Bd7 {[%emt 0:03:17]} (20... bxc3 21. Qxa4 Rd8 22. Qc4 Qxd6 23. Rxd6 $17) 21. Bc4 {[%emt 0:00:11] Rhg1 is the strong threat.} bxc3 {[%emt 0:03:01]} 22. b3 {[%emt 0:03:38] Strongly threatening Rhg1.} (22. Qxg6 $2 cxb2+ 23. Kc2 {[#]} Qxc4+ $3 {[%mdl 512]} 24. Nxc4 fxg6 $19) 22... Qc5 $2 {[%emt 0:04:32]} 23. Nxf7 $1 $11 {[%emt 0:02:03]} ({Don't go for} 23. bxa4 $2 Qa3+ 24. Kb1 Bxa4 $19) 23... Bf5 {[%emt 0:01:55] This bishop pair is nice.} 24. Nh6+ $1 {[%emt 0:00:22]} Kh8 {[%emt 0:00:09] ( -> ...Qa3+)} 25. Nxf5 {[%emt 0:00:06] Really sharp!} Rxf5 {[%emt 0:01:32]} 26. Nh4 $36 {[%emt 0:01:07][%mdl 2048] White fights for an advantage.} Bh6+ $2 {[%emt 0:02:49][%mdl 8192] A mistake that costs the game.} (26... Rxf2 $2 {leads to mate.} 27. Nxg6+ Kh7 28. Nf8+ Kh8 29. Qh7#) (26... Qa3+ $11 27. Kb1 Rf6) 27. Kb1 $18 {[%emt 0:00:17]} Rxf2 {[%emt 0:06:18]} 28. Nxg6+ {[%emt 0:00:06] White mates.} Kg7 {[%emt 0:02:03]} 29. Rd7+ {[%emt 0:00:02]} Kf6 {[%emt 0:00:04]} 30. Rf7+ {[%emt 0:00:08] Weighted Error Value: White=0.34/Black=0.54} 1-0

[Event "Slovakia Open 2022"]
[Site "Bratislava"]
[Date "2022.10.01"]
[Round "5.13"]
[White "Nytra, Ondrej"]
[Black "Rakhmangulova, Anastasiya"]
[Result "1-0"]
[ECO "B92"]
[WhiteElo "2233"]
[BlackElo "2244"]
[Annotator "TA"]
[PlyCount "91"]
[EventDate "2022.09.30"]
[EventCountry "SVK"]
[SourceTitle "playchess.com"]
[Source "ChessBase"]
[SourceQuality "1"]
[TimeControl "2700+10"]

{[%evp 13,91,0,0,0,0,0,0,-9,0,-19,22,19,39,-6,0,-24,29,0,0,-105,-98,-117,-66,-64,-66,-61,-44,-63,-61,-57,-49,-60,-56,-48,-50,-51,0,0,0,0,0,0,0,0,0,0,0,0,0,-15,0,0,90,89,350,356,351,345,352,359,325,306,349,310,462,436,874,877,822,701,874,883,900,885,996,956,1096,1066,29984,29985]} 1. e4 {[%emt 0:00:04]} c5 {[%emt 0:00:02]} 2. Nf3 {[%emt 0:00:02]} d6 {[%emt 0:00:03]} 3. d4 {[%emt 0:00:02]} cxd4 {[%emt 0:00:01]} 4. Nxd4 {[%emt 0:00:02]} Nf6 {[%emt 0:00:10]} 5. Nc3 {[%emt 0:00:02]} a6 {[%emt 0:00:02]} 6. Be2 {[%emt 0:00:10]} e5 {[%emt 0:00:00]} 7. Nf3 {[%emt 0:00:02]} Be7 {[%emt 0:00:00]} 8. a4 {[%emt 0:00:06] B92: Sicilian Najdorf: 6 Be2.} Be6 {[%emt 0:00:29]} 9. O-O {[%emt 0:00:25]} O-O {[%emt 0:00:17]} 10. b3 {[%emt 0:00:16] The position is equal.} Qc7 {[%emt 0:01:47]} 11. Bb2 {[%emt 0:00:08]} Nbd7 {[%emt 0:00:02] [#]} 12. Re1 $146 {[%emt 0:00:05]} ({Predecessor:} 12. Nd2 Rfd8 13. Nc4 Nb6 14. Ne3 Rac8 15. Rc1 d5 16. a5 Na8 17. Ncxd5 Bxd5 18. exd5 Qxa5 {0-1 (33) Stochnialek,D (1725)-Szafranski,M (1425) Poznan 2018}) 12... Rac8 {[%emt 0:00:40]} 13. Bf1 {[%emt 0:00:22]} Rfd8 {[%emt 0:00:10]} 14. Qe2 {[%emt 0:00:03]} Nc5 {[%emt 0:03:41]} (14... Qa5 $142) 15. Rad1 {[%emt 0:00:17]} Bd7 {[%emt 0:00:09]} 16. Rd2 {[%emt 0:05:27] [#]} (16. Nd2 $11 {keeps the balance.}) 16... Bc6 $1 $17 {[%emt 0:01:28]} 17. Nd5 {[%emt 0:00:46]} Nxd5 {[%emt 0:01:06]} (17... Bxd5 $17 18. exd5 Nce4) 18. exd5 $15 {[%emt 0:00:02]} Bd7 {[%emt 0:00:01]} 19. Ba3 {[%emt 0:05:46]} b5 {[%emt 0:05:00]} 20. axb5 {[%emt 0:00:33]} axb5 {[%emt 0:00:02]} 21. Qe3 {[%emt 0:01:20]} f5 {[%emt 0:02:18]} 22. c4 {[%emt 0:02:54]} bxc4 {[%emt 0:04:57]} 23. Bxc4 {[%emt 0:00:19][%cal Rf3e5]} Bf6 {[%emt 0:07:11]} 24. Ra2 {[%emt 0:04:59][%cal Of3e5]} f4 {[%emt 0:04:45]} (24... Ne4 $15) 25. Qxc5 $11 {[%emt 0:02:21]} Qxc5 {[%emt 0:00:28]} 26. Bxc5 {[%emt 0:00:04]} Rxc5 {[%emt 0:00:03]} 27. Nd2 {[%emt 0:00:02]} Rc7 {[%emt 0:01:36]} 28. Ra6 {[%emt 0:01:37]} Be7 {[%emt 0:01:27]} 29. Ne4 {[%emt 0:02:09]} Bf5 {[%emt 0:03:33]} 30. Nc3 {[%emt 0:00:39]} Rb7 {[%emt 0:01:53]} 31. Re2 {[%emt 0:04:28] Inhibits Bc2.} Rc8 {[%emt 0:01:00][%cal Ob7b3] And now ...Rxb3! would win.} 32. f3 {[%emt 0:01:23]} Bd3 {[%emt 0:03:05] [#]} (32... g5 $11) 33. Rc6 $1 $16 {[%emt 0:01:13]} Ra8 {[%emt 0:01:36][%mdl 8192] Loses the game.} (33... Bf5 $16) 34. Bxd3 $18 {[%emt 0:00:07]} Rxb3 {[%emt 0:00:28]} 35. Bc2 {[%emt 0:00:13]} Ra1+ {[%emt 0:00:15]} 36. Kf2 {[%emt 0:00:08]} Rb8 {[%emt 0:00:06]} 37. Ne4 {[%emt 0:00:30]} Rh1 {[%emt 0:00:13]} 38. Rd2 {[%emt 0:02:51]} Ra8 {[%emt 0:00:18]} (38... Bh4+ $142 39. g3 Rxh2+ 40. Kg1 Rxd2) 39. Nxd6 {[%emt 0:00:48]} Raa1 {[%emt 0:00:53]} (39... Rd8 $142 40. Nf5 Bb4) 40. Rc8+ {[%emt 0:01:28]} Bf8 {[%emt 0:00:01]} 41. Bb3 {[%emt 0:00:42] Hoping for Ne4.} Rhf1+ {[%emt 0:00:33]} 42. Ke2 {[%emt 0:00:03]} Rfe1+ {[%emt 0:00:04]} 43. Kd3 {[%emt 0:00:02] Nf5 is the strong threat.} Re3+ {[%emt 0:00:04]} 44. Kc2 {[%emt 0:00:06] Threatens to win with Ne4.} Ra3 {[%emt 0:00:02]} 45. Bc4 {[%emt 0:01:01] aiming for Ne4.} Ra1 {[%emt 0:00:41]} 46. Nf5 {[%emt 0:00:12] Weighted Error Value: White=0.13 (very precise) /Black=0.34} 1-0

[Event "Slovakia Open 2022"]
[Site "Bratislava"]
[Date "2022.10.01"]
[Round "5.14"]
[White "Hasala, Richard"]
[Black "Sobek, Michal"]
[Result "0-1"]
[ECO "B34"]
[WhiteElo "1537"]
[BlackElo "2156"]
[Annotator "TA"]
[PlyCount "89"]
[EventDate "2022.09.30"]
[EventCountry "SVK"]
[SourceTitle "playchess.com"]
[Source "ChessBase"]
[SourceQuality "1"]
[TimeControl "2700+10"]

{[%evp 13,89,-35,-38,-36,-28,-150,-129,-135,-110,-145,-132,-133,-130,-122,-115,-137,-133,-136,-125,-132,-114,-146,-147,-167,-160,-158,-147,-131,-131,-134,-140,-152,-146,-145,-130,-167,-161,-152,-145,-356,-337,-340,-296,-380,-241,-231,-15,-591,-361,-352,-339,-327,-311,-327,-327,-319,-293,-298,-279,-447,-447,-460,-457,-466,-462,-454,-440,-847,-824,-816,5839,-798,-677,-904,29966,29970,29973,6289]} 1. e4 {[%emt 0:00:05]} c5 {[%emt 0:00:03]} 2. Nf3 {[%emt 0:00:05]} g6 {[%emt 0:00:02]} 3. d4 {[%emt 0:00:02]} cxd4 {[%emt 0:00:02]} 4. Nxd4 {[%emt 0:00:01]} Bg7 {[%emt 0:00:03]} 5. c3 {[%emt 0:00:12]} Nc6 {[%emt 0:00:08]} 6. Be3 {[%emt 0:00:02]} Nf6 {[%emt 0:00:07][%cal Bg8f6,Bf6d5,Bd5f4][%mdl 32]} 7. f3 {[%emt 0:00:09]} O-O {[%emt 0:00:08]} 8. Be2 {[%emt 0:00:02] B34: Sicilian: Accelerated Dragon with 5 Nc3: sidelines.} d5 {[%emt 0:00:04]} 9. exd5 {[%emt 0:00:11]} (9. Nd2 $11 {keeps the balance.}) 9... Nxd5 $17 {[%emt 0:00:03]} 10. Bf2 {[%emt 0:00:05] Black is better.} Nf4 {[%emt 0:00:33]} 11. Nxc6 {[%emt 0:01:27]} bxc6 {[%emt 0:00:42] [#]} 12. O-O $146 {[%emt 0:00:19]} ({Predecessor:} 12. Nd2 Nxg2+ 13. Kf1 Bh3 14. Kg1 Bh6 15. Nc4 Qxd1+ 16. Rxd1 Rfd8 17. Ra1 Nf4 18. Bf1 {0-1 (40) Reich,C-Schoof,A Baden 1996}) 12... Qxd1 {[%emt 0:00:03]} 13. Bxd1 {[%emt 0:00:01]} Nd3 $1 {[%emt 0:00:24]} 14. b3 {[%emt 0:00:56]} Nxf2 {[%emt 0:00:03]} 15. Kxf2 {[%emt 0:00:09]} Rd8 {[%emt 0:00:55]} 16. Be2 {[%emt 0:00:35]} a5 {[%emt 0:00:28][%cal Ba7a5,Ba5a4][%mdl 32]} 17. Rc1 {[%emt 0:02:02]} Be6 {[%emt 0:01:24]} 18. f4 {[%emt 0:01:44]} a4 {[%emt 0:00:58]} 19. b4 {[%emt 0:00:15]} c5 {[%emt 0:01:41] And now ...cxb4 would win.} 20. b5 {[%emt 0:04:37]} Rab8 {[%emt 0:00:48]} 21. Ke3 {[%emt 0:00:35]} Bf5 {[%emt 0:02:22]} 22. g4 {[%emt 0:00:58]} Bc8 {[%emt 0:00:12][%cal Bf5c8,Bc8b7,Bb7d5][%mdl 32] Black is much more active. The white rooks are badly placed. This bishop pair is nice.} 23. Na3 {[%emt 0:00:05]} e5 {[%emt 0:00:04]} 24. fxe5 {[%emt 0:01:54]} Bh6+ {[%emt 0:00:02]} 25. Kf3 {[%emt 0:00:23]} Bb7+ {[%emt 0:00:13]} 26. Kg3 $2 {[%emt 0:00:09]} (26. Kf2 $17) 26... Bxc1 $19 {[%emt 0:00:04]} 27. Rxc1 {[%emt 0:00:01]} Rd2 {[%emt 0:00:42][%csl LRa2,LRe2]} 28. Bc4 {[%emt 0:00:31]} Re8 {[%emt 0:00:49]} 29. Rf1 {[%emt 0:02:00]} Bd5 {[%emt 0:00:20]} (29... Rxe5 30. Rxf7 (30. Bxf7+ $2 Kg7 $19) 30... Bd5 31. Rf2 Rxf2 32. Kxf2) (29... Rg2+ $19 30. Kf4 Kg7) 30. Nb1 $2 {[%emt 0:01:42][%mdl 8192]} (30. Bxd5 $11 Rxd5 31. Nc4) 30... Rg2+ {[%emt 0:01:22]} 31. Kh3 {[%emt 0:00:11]} Bxc4 {[%emt 0:00:03]} 32. Kxg2 {[%emt 0:00:04]} Bxf1+ {[%emt 0:00:02]} ({But not} 32... Rxe5 $2 33. Rf4 Bxb5 34. Na3 $19) ({Not} 32... Bxb5 $2 33. Re1 $19) 33. Kxf1 {[%emt 0:00:03][%mdl 4096] Endgame KR-KN} c4 {[%emt 0:00:06]} ({Don't go for} 33... Rxe5 $2 34. Kf2 $19) 34. Na3 {[%emt 0:00:37]} Rxe5 {[%emt 0:02:46]} 35. b6 {[%emt 0:00:01]} Kf8 {[%emt 0:00:59]} 36. b7 $2 {[%emt 0:00:45]} (36. Kf2 {is the only way for White.}) 36... Re8 {[%emt 0:00:10]} 37. Nxc4 {[%emt 0:00:02] Hoping for Nb6.} Ke7 {[%emt 0:01:13]} 38. Na5 {[%emt 0:01:38]} Kd6 {[%emt 0:00:18] Prevents Nc6.} 39. Nc4+ {[%emt 0:02:34]} Kc7 {[%emt 0:00:11]} 40. a3 {[%emt 0:00:18]} (40. Kf2 $142) 40... Re4 {[%emt 0:00:37]} 41. Nd6 {[%emt 0:01:26]} Kb8 $4 {[%emt 0:00:00][%mdl 8192]} 42. Kf2 $4 {[%emt 0:00:14][%mdl 8192]} (42. Nxe4 $18 Kxb7 43. h4) 42... Rxg4 {[%emt 0:00:37] Threatens to win with ...Rf4+.} 43. Nb5 {[%emt 0:00:45]} Rd4 $4 {[%emt 0:00:12][%mdl 8192]} 44. cxd4 {[%emt 0:00:00]} g5 {[%emt 0:00:02]} 45. Ke3 {[%emt 0:00:00][%mdl 32768] What a bad dream for Black.  Weighted Error Value: White=0.76/Black=0.42. Sensor Board Error (Ke4/e5)?} (45. Nd6 $142 h5 46. Kf3 Kc7 {[#]} 47. Ke4 $1 f6 48. Kf5 $1 h4 49. d5 $1 Kb8 50. Ne4 Kxb7 51. Kxf6) 0-1

[Event "Slovakia Open 2022"]
[Site "Bratislava"]
[Date "2022.10.01"]
[Round "5.15"]
[White "Merva, Frantisek"]
[Black "Meszaros, Casey Ryan"]
[Result "1/2-1/2"]
[ECO "A82"]
[WhiteElo "1981"]
[BlackElo "1925"]
[Annotator "TA"]
[PlyCount "130"]
[EventDate "2022.09.30"]
[EventCountry "SVK"]
[SourceTitle "playchess.com"]
[Source "ChessBase"]
[SourceQuality "1"]
[TimeControl "2700+10"]

{[%evp 10,130,0,-25,-10,-21,-25,-72,-62,-60,-60,-60,-59,-81,-77,-79,-64,-58,-66,-88,-31,-28,-21,-25,-14,-36,-22,-76,-51,-56,-58,-128,-122,-128,-104,-94,-77,-82,-75,-86,-79,-130,-127,-133,-98,-98,-103,-124,-90,-93,-25,-31,0,-97,-90,-105,-104,-124,-109,-108,-93,-94,-94,-102,-91,-83,-39,-105,-87,-94,-58,-107,-77,-111,-102,-112,-110,-104,-88,-148,-135,-150,-150,-145,-129,-120,-93,-118,-111,-175,-170,-166,-115,-118,-111,-121,-117,-142,-110,-120,-120,-158,-55,-153,-138,-210,-175,-308,-320,-230,-187,-354,-256,-228,-156,-142,-93,-238,0,0,0,-8,-8]} 1. d4 {[%emt 0:00:05]} f5 {[%emt 0:00:16]} 2. Nc3 {[%emt 0:00:54]} Nf6 {[%emt 0:00:03]} 3. f3 {[%emt 0:00:03]} d5 {[%emt 0:00:15]} 4. e4 {[%emt 0:01:10]} dxe4 {[%emt 0:01:58]} 5. fxe4 {[%emt 0:00:05]} fxe4 {[%emt 0:00:48]} 6. Bc4 {[%emt 0:01:28]} Bg4 {[%emt 0:01:29] A82: Dutch Defence: Staunton Gambit.} 7. Nge2 {[%emt 0:00:19]} (7. Be2 $5 {[%cal Re2g4]} Be6 8. Bg5 $11) 7... Nc6 {[%emt 0:00:29]} 8. h3 {[%emt 0:02:17]} (8. d5 $11 Na5 9. h3) 8... Bxe2 $17 {[%emt 0:01:16] Black is better.} 9. Nxe2 {[%emt 0:00:08] [#]} Qd6 $146 {[%emt 0:01:47]} ({Predecessor:} 9... e5 10. Bg5 exd4 11. O-O Qe7 12. Nxd4 O-O-O 13. Bxf6 gxf6 14. Qg4+ Kb8 15. Ne6 Ne5 16. Qxe4 {½-½ (29) Maris,I (2178)-Beukema,S (2305) Dieren 2014}) 10. O-O {[%emt 0:00:53]} O-O-O {[%emt 0:02:04]} 11. Be3 {[%emt 0:01:32]} e5 {[%emt 0:01:23][%cal Re5d4]} 12. c3 {[%emt 0:00:07]} Nd5 {[%emt 0:01:28]} 13. Bxd5 {[%emt 0:05:24]} Qxd5 {[%emt 0:00:06]} 14. Qa4 {[%emt 0:00:21]} exd4 {[%emt 0:02:28]} (14... Bd6 $17) 15. cxd4 $15 {[%emt 0:00:11]} Qa5 {[%emt 0:01:21]} 16. Qxa5 {[%emt 0:01:59]} Nxa5 {[%emt 0:00:03]} 17. Rac1 {[%emt 0:00:09] Prevents Nc4.} Nc6 {[%emt 0:01:09]} 18. a3 {[%emt 0:00:21]} (18. Rf7 $11 {keeps the balance.}) 18... Bd6 $17 {[%emt 0:00:32]} 19. Rf7 {[%emt 0:01:42]} Rd7 {[%emt 0:06:34]} 20. Rf5 {[%emt 0:02:31]} ({White should try} 20. Rcf1 $15) 20... g6 {[%emt 0:00:55]} 21. Rff1 {[%emt 0:01:28]} Rhd8 {[%emt 0:01:36]} 22. Nc3 {[%emt 0:03:12]} a6 {[%emt 0:04:51]} 23. Nxe4 {[%emt 0:02:01]} Re8 {[%emt 0:02:16]} 24. Nxd6+ {[%emt 0:00:08]} Rxd6 {[%emt 0:00:03]} 25. Bh6 {[%emt 0:06:51]} (25. Rce1 $142) 25... Nxd4 {[%emt 0:01:08] [#] Threatens to win with ...Ne2+.} 26. Kh2 {[%emt 0:00:07]} Nc6 {[%emt 0:01:16]} 27. Rf7 {[%emt 0:02:33]} Rd7 {[%emt 0:00:55]} 28. Rf2 {[%emt 0:00:35]} Rde7 {[%emt 0:02:26]} 29. Rc3 {[%emt 0:01:45]} Re2 {[%emt 0:00:32]} ({Better is} 29... Nd4 $17) 30. Rf7 $11 {[%emt 0:00:07]} R2e7 {[%emt 0:01:13]} ({Black should play} 30... Rxb2 $15 31. Rxh7 Rbe2) 31. Rf2 $1 $17 {[%emt 0:00:03]} Nd4 {[%emt 0:00:43]} 32. Bf8 {[%emt 0:03:52]} Rd7 $36 {[%emt 0:01:59][%mdl 2048] Black is in control.} 33. Bh6 {[%emt 0:00:03]} Nf5 {[%emt 0:00:16]} 34. Bf4 {[%emt 0:00:09]} c6 {[%emt 0:00:14]} 35. b4 {[%emt 0:01:21]} Nd4 {[%emt 0:00:16]} 36. Bh6 {[%emt 0:02:14]} Nb5 {[%emt 0:00:47]} 37. Rcf3 {[%emt 0:00:18]} Nc7 {[%emt 0:00:24]} 38. Bf8 {[%emt 0:00:12]} (38. Rf8 $15) 38... Ne6 {[%emt 0:00:26]} 39. Bh6 {[%emt 0:00:08]} Kb8 {[%emt 0:00:16]} 40. Be3 {[%emt 0:00:09]} (40. Re3 $15 Kc7 41. Re5) 40... Kc7 {[%emt 0:00:56]} 41. a4 {[%emt 0:00:13]} Nd4 {[%emt 0:00:25]} 42. Bf4+ {[%emt 0:00:57]} Kc8 {[%emt 0:00:01]} 43. Rd3 {[%emt 0:00:02]} Ne2 {[%emt 0:00:39]} 44. Bd6 {[%emt 0:00:17]} (44. Re3 $142 Rxe3 45. Bxe3) 44... Red8 {[%emt 0:00:41]} 45. Rxe2 {[%emt 0:00:03]} Rxd6 {[%emt 0:00:02][%mdl 4096] Endgame KRR-KRR} 46. Rb3 {[%emt 0:00:09]} Rd3 {[%emt 0:00:13]} 47. Rbb2 {[%emt 0:00:02]} R8d7 {[%emt 0:00:07]} 48. a5 {[%emt 0:00:29]} Kc7 {[%emt 0:00:09]} 49. Re4 {[%emt 0:00:08]} (49. Re8 $17 {might work better.}) 49... R3d4 $19 {[%emt 0:00:04]} 50. Re6 {[%emt 0:00:05]} R4d5 {[%emt 0:00:25]} (50... Rf7 $19 51. Re8 Kd7) 51. Re4 $17 {[%emt 0:00:07]} Rb5 {[%emt 0:00:04]} 52. Rc2 {[%emt 0:00:10]} h5 {[%emt 0:00:30][%cal Bh7h5,Bh5h4][%mdl 32]} 53. Rcc4 {[%emt 0:00:11]} Rf5 {[%emt 0:00:12]} 54. Re6 {[%emt 0:00:02]} g5 {[%emt 0:00:06]} 55. Rg6 {[%emt 0:00:14] [#]} Rf4 {[%emt 0:00:23]} (55... h4 $1 $17 56. Re4 c5) 56. Rc5 {[%emt 0:00:16]} (56. Rxf4 $15 gxf4 57. h4) 56... Rxb4 {[%emt 0:00:18]} 57. Rgxg5 {[%emt 0:00:01]} (57. Rcxg5 $17 {keeps fighting.} h4 58. Rh5) 57... h4 {[%emt 0:00:11]} 58. Rg4 {[%emt 0:00:02]} (58. Rc1 $142) 58... Rxg4 $19 {[%emt 0:00:49]} 59. hxg4 {[%emt 0:00:01] KR-KR} b6 {[%emt 0:00:23]} 60. Rh5 {[%emt 0:00:27]} (60. axb6+ Kxb6 61. Rc1) 60... bxa5 {[%emt 0:00:00] And now ...Kb6 would win.} 61. Rxa5 {[%emt 0:00:01]} Kb6 {[%emt 0:00:08]} 62. Ra1 {[%emt 0:00:02]} a5 {[%emt 0:00:09]} (62... c5 $142 {...c4 is the strong threat.} 63. Rb1+ Kc6) 63. Kh3 {[%emt 0:00:01]} (63. g3 $17 {is a better defense.} hxg3+ 64. Kxg3) 63... Rh7 $2 {[%emt 0:00:07]} (63... c5 $19 {White must now prevent ...c4.} 64. g5 c4) 64. g5 $11 {[%emt 0:00:04]} c5 {[%emt 0:00:17] Hoping for ...c4.} 65. Kg4 {[%emt 0:00:04]} Rd7 {[%emt 0:00:13] Weighted Error Value: White=0.24 (precise) /Black=0.22 (precise)} 1/2-1/2

[Event "Slovakia Open 2022"]
[Site "Bratislava"]
[Date "2022.10.01"]
[Round "5.16"]
[White "Kucera, Michal"]
[Black "Roshka, Yevgeniy"]
[Result "0-1"]
[ECO "C07"]
[WhiteElo "1927"]
[BlackElo "2497"]
[Annotator "TA"]
[PlyCount "48"]
[EventDate "2022.09.30"]
[EventCountry "SVK"]
[SourceTitle "playchess.com"]
[Source "ChessBase"]
[SourceQuality "1"]
[TimeControl "2700+10"]

{[%evp 10,48,20,25,25,15,17,0,0,0,0,13,0,-11,0,0,0,-14,-18,-49,-50,-60,-49,-70,-9,-68,-68,-64,-27,-39,-29,-201,-200,-201,-225,-222,-200,-29990,-29991,-29991,-29992]} 1. e4 {[%emt 0:00:07]} e6 {[%emt 0:00:02]} 2. d4 {[%emt 0:00:03]} d5 {[%emt 0:00:03]} 3. Nd2 {[%emt 0:00:02]} c5 {[%emt 0:00:15]} 4. exd5 {[%emt 0:00:11]} Qxd5 {[%emt 0:00:07]} 5. Ngf3 {[%emt 0:00:09]} cxd4 {[%emt 0:00:04]} 6. Bc4 {[%emt 0:00:07]} Qd7 {[%emt 0:00:07] C07: French Tarrasch: 3...c5, 4 Ngf3 and 4 exd5 Qxd5.} 7. O-O {[%emt 0:00:18][%mdl 1024] White has compensation.} Nc6 {[%emt 0:00:09]} 8. Qe2 {[%emt 0:01:59]} a6 {[%emt 0:00:06] The position is equal.} 9. a4 {[%emt 0:09:04]} Nf6 {[%emt 0:00:39]} 10. Nb3 {[%emt 0:00:32]} Bd6 {[%emt 0:00:13]} 11. Bg5 {[%emt 0:00:35]} Qc7 {[%emt 0:03:09]} 12. Rad1 {[%emt 0:02:45]} Bd7 {[%emt 0:01:06] [#]} 13. Rfe1 $146 {[%emt 0:01:57]} ({Predecessor:} 13. Nbxd4 O-O 14. c3 Na5 15. Bd3 Nd5 16. Qe4 f5 17. Qh4 Rae8 18. Bb1 Ne7 19. Rfe1 {1-0 (44) McKenzie,C (2296)-Jenkinson,S (2215) ICCF email 2013}) 13... h6 {[%emt 0:01:04]} 14. Bxf6 {[%emt 0:03:15]} gxf6 {[%emt 0:01:04]} 15. Nbxd4 {[%emt 0:00:51][%cal Rc4e6] [#] Strongly threatening Bxe6!} O-O-O {[%emt 0:04:02]} 16. g3 {[%emt 0:09:35][%cal Oc4b5]} h5 {[%emt 0:00:18]} (16... Kb8 $15) 17. Nxc6 {[%emt 0:00:32]} (17. Bb5 $1 $11) 17... Bxc6 $15 {[%emt 0:00:51]} 18. Nd4 {[%emt 0:00:10]} f5 {[%emt 0:02:37]} 19. Nxc6 {[%emt 0:00:28]} Qxc6 {[%emt 0:00:03]} 20. Rd4 {[%emt 0:00:56] [#] This costs White the game.} (20. Rd3 $11 {and White has nothing to worry.}) 20... h4 $1 $19 {[%emt 0:01:55][%cal Bh5h4,Bh4g3][%mdl 32] White must now prevent ...hxg3.} 21. Bxe6+ {[%emt 0:01:40]} fxe6 {[%emt 0:00:45]} 22. Rc4 {[%emt 0:00:13]} Bc5 {[%emt 0:00:29] ( -> ...hxg3)} 23. b4 $2 {[%emt 0:04:27]} (23. Qxe6+ $19 Qxe6 24. Rxe6) 23... hxg3 {[%emt 0:00:06]} 24. Qxe6+ {[%emt 0:02:41]} Qxe6 {[%emt 0:00:04] Weighted Error Value: White=0.43/Black=0.10 (very precise)} 0-1